Cogmind - Beta 14 @@@ ROGUE MODE // 2024.08.18 @ 19:10:22 Player: Bulbasornado Result: Escaped! Performance ------------- Evolutions (9) 4500 Regions Visited (14) 2800 Robots Destroyed (8) 40 Value Destroyed (449) 449 Prototype IDs (9) 180 Alien Tech Used (0) 0 Bonus (15329) 15329 TOTAL SCORE: 23298 Bonus ------- Pacifist 200 Entered Garrisons 200 Entered DSFs 500 Win 3000 Win Speed 11429 Cogmind --------- Core Integrity 1322/1600 Matter 96/300 Energy 50/150 System Corruption 0% Temperature Cool (5) Movement Flying (24) Location To Epsilon Eridani Parts ------- > --- POWER (2) -------- Micro Antimatter Reactor > --- PROPULSION (8) --- Field Propulsion Drive Field Propulsion Drive Field Propulsion Array Faulty Electron Diverter Improved Diametric Drive Experimental Q-thruster > --- UTILITY (13) ----- Advanced Heat Sink Experimental Optical Array Advanced Signal Interpreter Seismic Detector Advanced Reaction Control System Graphene Brace Focal Shield Advanced Thermal Shield System Shield System Shield Advanced Corruption Screen > --- WEAPON (2) ------- Gamma Bomb Array > --- INVENTORY (5) ---- Enhanced Quantum Rifle Compact HERF Cannon Peak State ------------ > --- POWER ------------ Micro Antimatter Reactor Light Quantum Reactor > --- PROPULSION ------- Improved Surge Thruster Field Propulsion Drive Field Propulsion Drive Field Propulsion Array Electron Diverter Improved Diametric Drive Experimental Q-thruster > --- UTILITY ---------- Advanced Heat Sink Advanced Heat Sink Experimental Energy Well Experimental Optical Array Advanced Signal Interpreter Improved Powered Armor Graphene Brace Focal Shield Advanced Thermal Shield Hacking Suite System Shield System Shield Advanced Corruption Screen > --- WEAPON ----------- Thermic Laser > --- INVENTORY -------- Antimatter Reactor Light Antimatter Reactor Quantum Reactor Precision Energy Filter Compact HERF Cannon [Rating: 158] Favorites ----------- Power Micro Antimatter Reactor Engine Light Ion Engine Power Core Micro Nuclear Core Reactor Micro Antimatter Reactor Propulsion Field Propulsion Drive Hover Unit Improved Linear Gravjet Flight Unit Field Propulsion Drive Utility System Shield Device Advanced Heat Sink Storage Experimental Energy Well Processor Advanced Terrain Scan Processor Hackware System Shield Protection Improved Powered Armor Weapon Thermic Laser Energy Gun Thermic Laser Launcher Grenade Launcher Slashing Weapon Power Sword Build | -11 -10 -9 -8 -7 -7 -7 -6 -5 -4 -4 -3 -2 -2 -1 ------- Run | Yrd Mat Mat Mat Fac Gar Sto Fac Fac Fac DSF Res Res Tes Acc Slots Evolved 18 | . . 2 2 2 . . 2 2 2 . 2 2 . 2 Power 1 | . . . . 1 . . . . . . . . . . Propulsion 6 | . . 1 1 1 . . 1 . . . . 1 . 1 Utility 11 | . . 1 1 . . . 1 2 2 . 2 1 . 1 Weapon . | . . . . . . . . . . . . . . . Parts Attached 84 | . . 4 4 4 5 4 16 2 2 3 14 11 3 12 Power 9 | . . . . . . . 2 . . . 2 3 . 2 Engine 1 | . . . . . . . . . . . . 1 . . Core 4 | . . . . . . . 2 . . . 1 1 . . Reactor 4 | . . . . . . . . . . . 1 1 . 2 Propulsion 23 | . . 3 1 1 . 3 3 . 1 2 4 3 1 1 Treads . | . . . . . . . . . . . . . . . Leg . | . . . . . . . . . . . . . . . Wheel . | . . . . . . . . . . . . . . . Hover 4 | . . . . . . . . . 1 . 3 . . . Flight 19 | . . 3 1 1 . 3 3 . . 2 1 3 1 1 Utility 44 | . . . 3 3 4 1 8 2 1 1 8 4 2 7 Device 14 | . . . . . . . 2 . 1 . 4 2 . 5 Storage 1 | . . . . . . . . . . . 1 . . . Processor 12 | . . . 1 2 . 1 4 1 . . 1 1 1 . Hackware 4 | . . . . . . . . . . . 1 . 1 2 Protection 13 | . . . 2 1 4 . 2 1 . 1 1 1 . . Artifact . | . . . . . . . . . . . . . . . Weapon 8 | . . 1 . . 1 . 3 . . . . 1 . 2 Energy Gun 3 | . . . . . . . 1 . . . . 1 . 1 Energy Cannon . | . . . . . . . . . . . . . . . Ballistic Gun . | . . . . . . . . . . . . . . . Ballistic Cannon . | . . . . . . . . . . . . . . . Launcher 4 | . . 1 . . 1 . 1 . . . . . . 1 Special Weapon . | . . . . . . . . . . . . . . . Impact Weapon . | . . . . . . . . . . . . . . . Slashing Weapon 1 | . . . . . . . 1 . . . . . . . Piercing Weapon . | . . . . . . . . . . . . . . . Special Melee Weapon . | . . . . . . . . . . . . . . . Unidentified Prototypes 9 | . . 1 1 . . 1 . . . . 2 1 2 1 Parts Lost 28 | . . . . . 10 2 5 . . 2 1 1 1 6 Power 3 | . . . . . . . 2 . . . . 1 . . Propulsion 10 | . . . . . 3 1 2 . . 1 1 . 1 1 Utility 12 | . . . . . 5 1 1 . . 1 . . . 4 Weapon 3 | . . . . . 2 . . . . . . . . 1 Highest Loss Streak 7 | . . . . . 7 2 3 . . 2 1 1 1 4 To Critical Strikes . | . . . . . . . . . . . . . . . Average Slot Usage (%) 58 | . . 22 59 67 44 33 52 24 29 31 50 80 91 81 Core 1 | . . . . . . . 4 . . . 3 1 . . Reactor 2 | . . . . . . . . . . . . 2 4 7 Flight 19 | . . 12 32 30 17 15 15 5 5 10 12 22 26 25 Device 7 | . . . . . . . 7 . 3 2 1 12 17 19 Storage 1 | . . . . . . . . . . . 3 4 4 1 Processor 12 | . . . 6 13 12 9 16 17 15 15 14 17 15 12 Hackware 3 | . . . . . . . . . . . 2 4 5 10 Protection 4 | . . . 11 15 11 7 2 1 1 2 2 7 8 2 Energy Gun 1 | . . . . . . . 1 . . . . 2 4 2 Launcher 1 | . . 9 9 7 2 . . . . . . . . . Peak Build Rating 158 | . . 6 17 20 20 24 45 23 34 40 100 129 138 158 Average Rating 66 | . . 3 13 18 14 15 35 20 28 33 60 114 134 140 On Entrance 36 | . . . 6 17 20 10 21 16 23 34 33 100 129 136 Naked Turns 58 | . 53 5 . . . . . . . . . . . . Heaviest Build 46 | . . 3 8 8 9 2 17 4 4 7 16 41 41 46 Greatest Support 48 | 3 3 13 18 14 14 18 18 6 12 12 36 48 48 46 Greatest Overweight (x) 9 | . . . 2 . . . . . . . . . . 9 Average Overweight (x) . | . . . . . . . . . . . . . . . Largest Inventory Capacity 5 | 5 5 5 5 5 5 5 5 5 5 5 5 5 5 5 Average Capacity 5 | 5 5 5 5 5 5 5 5 5 5 5 5 5 5 5 Most Carried 5 | . 1 5 5 5 5 1 5 5 5 5 5 5 5 5 Average Carried 3 | . . 2 4 5 3 1 2 4 4 4 4 3 4 4 Final Capacity 5 | 5 5 5 5 5 5 5 5 5 5 5 5 5 5 5 Final Carried 5 | . 1 5 5 5 1 1 5 4 5 5 5 5 5 2 Class Distribution -------------------- 43% | Sprinter 23% | Hacker-Sprinter 19% | Mutant 13% | Scout Dominant Class ---------------- Mutant | -10/Materials Mutant | -9/Materials Mutant | -8/Materials Sprinter | -7/Factory Sprinter | -7/Garrison Sprinter | -7/Storage Scout | -6/Factory Sprinter | -5/Factory Sprinter | -4/Factory Sprinter | -4/DSF Sprinter | -3/Research Sprinter | -2/Research Sprinter | -2/Testing Hacker-Sprinter | -1/Access Resources | -11 -10 -9 -8 -7 -7 -7 -6 -5 -4 -4 -3 -2 -2 -1 ----------- Run | Yrd Mat Mat Mat Fac Gar Sto Fac Fac Fac DSF Res Res Tes Acc Matter Collected 776 | 200 . 30 70 . . . 212 . . . . 43 160 61 Remotely . | . . . . . . . . . . . . . . . Salvage Created 154 | . . 48 . . . . . . . . . 43 49 14 Parts 17 | . . 3 . . . . . . . . . 8 4 2 Haulers Intercepted 1 | . . 1 . . . . . . . . . . . . Recyclers Shooed . | . . . . . . . . . . . . . . . Parts Field Recycled . | . . . . . . . . . . . . . . . Retrieved Matter . | . . . . . . . . . . . . . . . Parts Self-Destructed . | . . . . . . . . . . . . . . . Prevented . | . . . . . . . . . . . . . . . Kills | -11 -10 -9 -8 -7 -7 -7 -6 -5 -4 -4 -3 -2 -2 -1 ------- Run | Yrd Mat Mat Mat Fac Gar Sto Fac Fac Fac DSF Res Res Tes Acc Combat Hostiles Destroyed . | . . . . . . . . . . . . . . . Classes Destroyed 4 | . . 1 . . . . . . . . . 2 . 1 Worker 5 | . . . . . . . . . . . . 2 3 . Builder 1 | . . . . . . . . . . . . 1 . . Tunneler 1 | . . . . . . . . . . . . . . 1 Hauler 1 | . . 1 . . . . . . . . . . . . Best Kill Streak 2 | . . 1 . . . . . . . . . 2 2 1 Combat Bots Only . | . . . . . . . . . . . . . . . Max Kills in Single Turn 1 | . . 1 . . . . . . . . . 1 1 1 Gunslinging . | . . . . . . . . . . . . . . . Exploded . | . . . . . . . . . . . . . . . Melee . | . . . . . . . . . . . . . . . Uniques/NPCs Destroyed . | . . . . . . . . . . . . . . . Combat | -11 -10 -9 -8 -7 -7 -7 -6 -5 -4 -4 -3 -2 -2 -1 -------- Run | Yrd Mat Mat Mat Fac Gar Sto Fac Fac Fac DSF Res Res Tes Acc Hostile Shots Fired 552 | . 2 10 11 2 102 87 198 3 . 11 3 11 41 71 Missed 329 | . . 7 7 1 41 56 131 2 . 7 2 7 28 40 Damage Taken 3909 | . 29 34 58 17 858 387 987 21 . 227 27 106 285 873 Core 1585 | . 29 22 . 17 268 273 606 . . 46 . . 46 278 Absorbed by Shields 83 | . . . . . 46 . 37 . . . . . . . Redirected to Shielding 16 | . . . . . . 11 5 . . . . . . . Ignored by Resistances 231 | . . . . . . . . 3 . . 3 13 10 202 Core Remaining (%) 82 | 100 88 94 100 . . 20 28 100 . 96 100 . 96 82 Volleys Fired 32 | . . 2 . . 4 . . . . . . 5 9 12 Largest 1 | . . 1 . . 1 . . . . . . 1 1 1 Hottest 85 | . . 30 . . 30 . . . . . . 85 85 85 Shots Fired 32 | . . 2 . . 4 . . . . . . 5 9 12 Gun 24 | . . . . . . . . . . . . 5 9 10 Cannon . | . . . . . . . . . . . . . . . Launcher 8 | . . 2 . . 4 . . . . . . . . 2 Special . | . . . . . . . . . . . . . . . Kinetic . | . . . . . . . . . . . . . . . Thermal 24 | . . . . . . . . . . . . 5 9 10 Explosive 6 | . . 2 . . 4 . . . . . . . . . Electromagnetic 2 | . . . . . . . . . . . . . . 2 Robot Hit Streak 5 | . . 2 . . 2 . . . . . . 5 3 2 Robot Miss Streak 4 | . . . . . 1 . . . . . . 1 1 4 Penetration Max . | . . . . . . . . . . . . . . . Secondary Targets . | . . . . . . . . . . . . . . . Shots Hit Robots 17 | . . 2 . . 2 . . . . . . 4 6 3 Core Hits 10 | . . 1 . . 1 . . . . . . 3 3 2 Critical Kills . | . . . . . . . . . . . . . . . Critical Parts Destroyed . | . . . . . . . . . . . . . . . Critical Strikes . | . . . . . . . . . . . . . . . Melee Attacks 1 | . . . . . . . 1 . . . . . . . Impact . | . . . . . . . . . . . . . . . Slashing 1 | . . . . . . . 1 . . . . . . . Piercing . | . . . . . . . . . . . . . . . Sneak Attacks . | . . . . . . . . . . . . . . . Combat Hostiles . | . . . . . . . . . . . . . . . Follow-up Attacks . | . . . . . . . . . . . . . . . Damage Inflicted 493 | . . 115 . . 126 . . . . . . 72 126 54 Guns 252 | . . . . . . . . . . . . 72 126 54 Cannons . | . . . . . . . . . . . . . . . Explosions 241 | . . 115 . . 126 . . . . . . . . . Melee . | . . . . . . . . . . . . . . . Ramming . | . . . . . . . . . . . . . . . Kinetic . | . . . . . . . . . . . . . . . Thermal 252 | . . . . . . . . . . . . 72 126 54 Explosive 241 | . . 115 . . 126 . . . . . . . . . Electromagnetic . | . . . . . . . . . . . . . . . Impact . | . . . . . . . . . . . . . . . Slashing . | . . . . . . . . . . . . . . . Piercing . | . . . . . . . . . . . . . . . Highest Corruption 2 | . . . . . . . 2 . . . . . . . Average Corruption 2 | . . . . . . . 2 . . . . . . . Corruption Purged . | . . . . . . . . . . . . . . . Corruption Blocked 1 | . . . . . . . . . . . . . . 1 Effects 2 | . . . . . . . 2 . . . . . . . Message Errors 1 | . . . . . . . 1 . . . . . . . Heat Flow Errors 1 | . . . . . . . 1 . . . . . . . Overload Shots . | . . . . . . . . . . . . . . . Overflow Damage . | . . . . . . . . . . . . . . . Projectiles . | . . . . . . . . . . . . . . . Explosions . | . . . . . . . . . . . . . . . Melee . | . . . . . . . . . . . . . . . Knockbacks . | . . . . . . . . . . . . . . . Impact . | . . . . . . . . . . . . . . . Kinetic . | . . . . . . . . . . . . . . . Secondary . | . . . . . . . . . . . . . . . Self-Inflicted Damage 53 | . . . . . 48 . . . . . . . . 5 Shots 2 | . . . . . 1 . . . . . . . . 1 Rammed . | . . . . . . . . . . . . . . . Targets Rammed . | . . . . . . . . . . . . . . . Kicked . | . . . . . . . . . . . . . . . Crushed . | . . . . . . . . . . . . . . . Highest Temperature 242 | . . . . . 29 . 242 . . . 39 26 6 . Average Temperature 57 | . . . . . 15 . 126 . . . 23 12 4 . Received Heat Transfer 558 | . 15 18 18 9 219 90 117 9 . . 9 27 . 27 Siege Activations . | . . . . . . . . . . . . . . . Robots Corrupted . | . . . . . . . . . . . . . . . Combat Hostiles . | . . . . . . . . . . . . . . . Parts Fried . | . . . . . . . . . . . . . . . Impact Corruptions . | . . . . . . . . . . . . . . . Robots Melted . | . . . . . . . . . . . . . . . Combat Hostiles . | . . . . . . . . . . . . . . . Parts Melted 1 | . . . . . . . . . . . . . 1 . Heat Transferred 700 | . . . . . . . . . . . . 200 350 150 Parts Sabotaged . | . . . . . . . . . . . . . . . Parts Stolen . | . . . . . . . . . . . . . . . Parts Stripped . | . . . . . . . . . . . . . . . Power Chain Reactions 2 | . . . . . . . . . . . . . . 2 Alert | -11 -10 -9 -8 -7 -7 -7 -6 -5 -4 -4 -3 -2 -2 -1 ------- Run | Yrd Mat Mat Mat Fac Gar Sto Fac Fac Fac DSF Res Res Tes Acc Peak Influence 946 | . 45 118 124 71 314 342 405 198 111 77 156 152 360 946 Initial 216 | . . 18 49 56 49 152 155 183 96 77 31 87 85 216 Average 262 | . 14 64 87 62 168 244 267 192 100 69 73 113 181 628 Maximum Alert Level 3 | . . . . . 1 1 2 . . . . . 1 3 Low Security (%) 57 | 100 100 100 100 100 55 31 41 100 100 100 100 100 78 . Level 1 25 | . . . . . 44 68 57 . . . . . 21 28 Level 2 3 | . . . . . . . 1 . . . . . . 16 Level 3 12 | . . . . . . . . . . . . . . 55 Level 4 . | . . . . . . . . . . . . . . . Level 5 . | . . . . . . . . . . . . . . . High Security . | . . . . . . . . . . . . . . . Max Security . | . . . . . . . . . . . . . . . Squads Dispatched 17 | . . 2 . . . . 2 . 2 1 1 . 2 7 Investigation 9 | . . 1 . . . . 1 . 2 . 1 . . 4 Extermination 1 | . . . . . . . . . . . . . . 1 Reinforcement 7 | . . 1 . . . . 1 . . 1 . . 2 2 Assault . | . . . . . . . . . . . . . . . Garrison . | . . . . . . . . . . . . . . . Intercept . | . . . . . . . . . . . . . . . Searches Triggered 1 | . . . . . . . . . . . . . . 1 Construction Impeded . | . . . . . . . . . . . . . . . Haulers Reinforced . | . . . . . . . . . . . . . . . Active Scanning Responses . | . . . . . . . . . . . . . . . Cargo Convoy Interrupts . | . . . . . . . . . . . . . . . Stealth | -11 -10 -9 -8 -7 -7 -7 -6 -5 -4 -4 -3 -2 -2 -1 --------- Run | Yrd Mat Mat Mat Fac Gar Sto Fac Fac Fac DSF Res Res Tes Acc Distress Signals 4 | . . . 1 . . . . . . . . . . 3 Communications Jammed . | . . . . . . . . . . . . . . . Distress Signals . | . . . . . . . . . . . . . . . Times Spotted 162 | . 4 8 6 1 24 17 18 1 1 5 6 5 22 44 Peak Tracking Total 13 | . 4 7 5 1 13 12 6 1 . 4 5 5 12 11 Tactical Retreats 27 | . . 1 1 . 3 3 6 . . . 2 . 3 8 Traps | -11 -10 -9 -8 -7 -7 -7 -6 -5 -4 -4 -3 -2 -2 -1 ------- Run | Yrd Mat Mat Mat Fac Gar Sto Fac Fac Fac DSF Res Res Tes Acc Traps Triggered 10 | . . 1 . 1 2 2 3 . . . . . . 1 Indirectly . | . . . . . . . . . . . . . . . Trap Hack Attempts . | . . . . . . . . . . . . . . . Triggered . | . . . . . . . . . . . . . . . Disarmed . | . . . . . . . . . . . . . . . Reprogrammed . | . . . . . . . . . . . . . . . Reused . | . . . . . . . . . . . . . . . Traps Extracted . | . . . . . . . . . . . . . . . Installed . | . . . . . . . . . . . . . . . Triggered . | . . . . . . . . . . . . . . . Machines | -11 -10 -9 -8 -7 -7 -7 -6 -5 -4 -4 -3 -2 -2 -1 ---------- Run | Yrd Mat Mat Mat Fac Gar Sto Fac Fac Fac DSF Res Res Tes Acc Machines Disabled 5 | . . . . . 2 . . . . . . . . 3 Max in Single Turn 2 | . . . . . 1 . . . . . . . . 2 Garrison Access 2 | . . . . . . . . . . . . . . 2 Garrison Relay 2 | . . . . . 2 . . . . . . . . . Machines Repaired . | . . . . . . . . . . . . . . . Machines Dismantled . | . . . . . . . . . . . . . . . Machines Sabotaged . | . . . . . . . . . . . . . . . Overloaded Fab Kills . | . . . . . . . . . . . . . . . Hacking | -11 -10 -9 -8 -7 -7 -7 -6 -5 -4 -4 -3 -2 -2 -1 --------- Run | Yrd Mat Mat Mat Fac Gar Sto Fac Fac Fac DSF Res Res Tes Acc Machines Accessed 19 | . . . 2 2 . . 3 . 3 . 3 . 2 4 Terminals 11 | . . . 1 1 . . 2 . 3 . 1 . 2 1 Fabricators . | . . . . . . . . . . . . . . . Repair Stations . | . . . . . . . . . . . . . . . Recycling Units 4 | . . . 1 . . . 1 . . . 2 . . . Scanalyzers . | . . . . . . . . . . . . . . . Garrison Access 4 | . . . . 1 . . . . . . . . . 3 Total Hacks 50 | . . . 5 3 . . 11 . 8 . 8 . 6 9 Successful 15 | . . . 3 1 . . 5 . 1 . 2 . 1 2 Failed 35 | . . . 2 2 . . 6 . 7 . 6 . 5 7 Catastrophic 13 | . . . 1 1 . . 1 . 1 . 1 . 2 6 Database Lockouts . | . . . . . . . . . . . . . . . Manual 8 | . . . . 1 . . 2 . 3 . . . . 2 Terminals 25 | . . . 1 1 . . 4 . 8 . 3 . 6 2 Fabricators . | . . . . . . . . . . . . . . . Repair Stations . | . . . . . . . . . . . . . . . Recycling Units 16 | . . . 4 . . . 7 . . . 5 . . . Scanalyzers . | . . . . . . . . . . . . . . . Garrison Access 9 | . . . . 2 . . . . . . . . . 7 Terminal Hacks 4 | . . . . . . . 2 . 1 . . . 1 . Open Door 1 | . . . . . . . . . . . . . 1 . Open DSF 1 | . . . . . . . . . 1 . . . . . Emergency Access Points 1 | . . . . . . . 1 . . . . . . . Terminal Index 1 | . . . . . . . 1 . . . . . . . Fabricator Hacks . | . . . . . . . . . . . . . . . Repair Station Hacks . | . . . . . . . . . . . . . . . Recycling Unit Hacks 7 | . . . 3 . . . 2 . . . 2 . . . Retrieve Matter 2 | . . . . . . . 1 . . . 1 . . . Retrieve Components 5 | . . . 3 . . . 1 . . . 1 . . . Scanalyzer . | . . . . . . . . . . . . . . . Garrison Access Hacks 2 | . . . . 1 . . . . . . . . . 1 Unlock Access 1 | . . . . 1 . . . . . . . . . . Seal Access 1 | . . . . . . . . . . . . . . 1 Unauthorized Hacks 2 | . . . . . . . 1 . . . . . . 1 Terminals . | . . . . . . . . . . . . . . . Fabricators . | . . . . . . . . . . . . . . . Repair Stations . | . . . . . . . . . . . . . . . Recycling Units 1 | . . . . . . . 1 . . . . . . . Recyclers 1 | . . . . . . . 1 . . . . . . . Scanalyzers . | . . . . . . . . . . . . . . . Garrison Access 1 | . . . . . . . . . . . . . . 1 Jam 1 | . . . . . . . . . . . . . . 1 Data Cores Recovered . | . . . . . . . . . . . . . . . Used . | . . . . . . . . . . . . . . . Hacking Detections 15 | . . . 1 2 . . 2 . 3 . 3 . 1 3 Full Trace Events 6 | . . . . . . . 1 . 2 . 1 . . 2 Feedback Events 1 | . . . . . . . . . . . . . . 1 Corruption 1 | . . . . . . . . . . . . . . 1 Feedback Blocked . | . . . . . . . . . . . . . . . Robot Schematics Acquired . | . . . . . . . . . . . . . . . Robots Built . | . . . . . . . . . . . . . . . Authchips . | . . . . . . . . . . . . . . . Time . | . . . . . . . . . . . . . . . Total Robot Build Rating . | . . . . . . . . . . . . . . . Part Schematics Acquired . | . . . . . . . . . . . . . . . Parts Built . | . . . . . . . . . . . . . . . Authchips . | . . . . . . . . . . . . . . . Time . | . . . . . . . . . . . . . . . Total Part Build Rating . | . . . . . . . . . . . . . . . Parts Repaired . | . . . . . . . . . . . . . . . Time . | . . . . . . . . . . . . . . . Parts Recycled . | . . . . . . . . . . . . . . . Recycled Matter . | . . . . . . . . . . . . . . . Retrieved Matter . | . . . . . . . . . . . . . . . Retrieved Components 3 | . . . 1 . . . . . . . 2 . . . Parts Scanalyzed . | . . . . . . . . . . . . . . . Part Schematics Acquired . | . . . . . . . . . . . . . . . Parts Damaged . | . . . . . . . . . . . . . . . Bothacking | -11 -10 -9 -8 -7 -7 -7 -6 -5 -4 -4 -3 -2 -2 -1 ------------ Run | Yrd Mat Mat Mat Fac Gar Sto Fac Fac Fac DSF Res Res Tes Acc Used RIF Installer . | . . . . . . . . . . . . . . . Robots Hacked . | . . . . . . . . . . . . . . . Non-combat . | . . . . . . . . . . . . . . . Combat . | . . . . . . . . . . . . . . . Robot Hacks Applied . | . . . . . . . . . . . . . . . Relay Couplers Released 7 | . . . . . 7 . . . . . . . . . Machine Destruction 7 | . . . . . 7 . . . . . . . . . Fabnet Peak Effective % . | . . . . . . . . . . . . . . . Robots Rewired . | . . . . . . . . . . . . . . . Allies Hacked . | . . . . . . . . . . . . . . . Hacks Repelled . | . . . . . . . . . . . . . . . Allies | -11 -10 -9 -8 -7 -7 -7 -6 -5 -4 -4 -3 -2 -2 -1 -------- Run | Yrd Mat Mat Mat Fac Gar Sto Fac Fac Fac DSF Res Res Tes Acc Total Allies . | . . . . . . . . . . . . . . . Largest Group . | . . . . . . . . . . . . . . . Highest-Rated Group . | . . . . . . . . . . . . . . . Highest-Rated Ally . | . . . . . . . . . . . . . . . Total Orders . | . . . . . . . . . . . . . . . Ally Attacks . | . . . . . . . . . . . . . . . Total Damage . | . . . . . . . . . . . . . . . Kills . | . . . . . . . . . . . . . . . Allies Corrupted . | . . . . . . . . . . . . . . . Allies Melted . | . . . . . . . . . . . . . . . Intel | -11 -10 -9 -8 -7 -7 -7 -6 -5 -4 -4 -3 -2 -2 -1 ------- Run | Yrd Mat Mat Mat Fac Gar Sto Fac Fac Fac DSF Res Res Tes Acc Robot Analysis Total . | . . . . . . . . . . . . . . . Derelict Logs Recovered . | . . . . . . . . . . . . . . . Drone Launches . | . . . . . . . . . . . . . . . Drone Recoveries . | . . . . . . . . . . . . . . . Exploration | -11 -10 -9 -8 -7 -7 -7 -6 -5 -4 -4 -3 -2 -2 -1 ------------- Run | Yrd Mat Mat Mat Fac Gar Sto Fac Fac Fac DSF Res Res Tes Acc Turns Passed 1825 | 10 53 73 103 89 113 120 333 35 31 19 181 114 139 412 Spaces Moved 5555 | 19 104 145 283 256 252 347 919 53 90 54 562 395 551 1525 Core 150 | 19 104 8 1 . . . 17 . . . . . . 1 Treads . | . . . . . . . . . . . . . . . Legs . | . . . . . . . . . . . . . . . Wheels . | . . . . . . . . . . . . . . . Hover 12 | . . . . . . . . . 2 . 10 . . . Flight 5393 | . . 137 282 256 252 347 902 53 88 54 552 395 551 1524 Fastest Speed 14 | 50 50 34 29 32 32 29 26 27 27 24 15 14 16 20 Average Speed 27 | 50 50 39 33 32 33 32 31 29 30 26 24 20 19 22 Slowest Speed 500 | 50 50 50 150 34 35 35 50 30 60 30 46 24 21 500 Overloaded Moves 219 | . . . . . . . 18 10 18 33 60 50 30 . Propulsion Burnouts 1 | . . . . . . . . . . . 1 . . . Robots Hopped 158 | . . 6 11 7 5 4 26 1 2 1 10 10 23 52 Cave-ins Triggered . | . . . . . . . . . . . . . . . Exploration Rate (%) 31 | 3 24 19 29 12 43 68 39 3 3 89 22 14 59 47 Regions Visited 14 Branch Regions 2 Pre-discovered Areas . | . . . . . . . . . . . . . . . Known Exits Taken 5 | . . . . 1 . 1 . . 1 . . 1 1 . Unknown Exits Taken 7 | 1 1 1 1 . . . 1 1 . . 1 . . . Scrap Searched . | . . . . . . . . . . . . . . . Spaces Dug 1 | . . . . . . . 1 . . . . . . . Terrain Destroyed 40 | . . 17 . . 22 . 1 . . . . . . . Melee 1 | . . . . . . . 1 . . . . . . . Projectile . | . . . . . . . . . . . . . . . AOE 39 | . . 17 . . 22 . . . . . . . . . Terrain Rammed . | . . . . . . . . . . . . . . . Walls Destroyed . | . . . . . . . . . . . . . . . Machines Disabled . | . . . . . . . . . . . . . . . Actions | -11 -10 -9 -8 -7 -7 -7 -6 -5 -4 -4 -3 -2 -2 -1 --------- Run | Yrd Mat Mat Mat Fac Gar Sto Fac Fac Fac DSF Res Res Tes Acc Total 5647 | 18 104 149 278 253 269 347 931 70 90 56 592 408 547 1535 Wait 58 | . . . . . . 1 2 16 . . 21 1 1 16 Move 5243 | 18 103 133 261 244 240 339 871 50 85 51 541 375 507 1425 Hop 138 | . . 5 10 5 4 3 21 1 2 1 10 9 20 47 Pick Up 31 | . 1 5 2 . . . 6 1 . 1 . 5 5 5 Fast Attach 49 | . . 3 3 3 . 4 9 . 2 2 10 4 . 9 Attach 24 | . . 1 1 . 4 . 3 2 . 1 4 5 1 2 Detach 12 | . . . . . . . 2 . 1 . 5 . . 4 Swap 11 | . . . . 1 1 . 4 . . . . 2 2 1 Drop 20 | . . . 1 . . . . . . . 1 2 2 14 Fire 32 | . . 2 . . 4 . . . . . . 5 9 12 Melee 1 | . . . . . . . 1 . . . . . . . Ram . | . . . . . . . . . . . . . . . Kick . | . . . . . . . . . . . . . . . Crush . | . . . . . . . . . . . . . . . Escape Stasis 28 | . . . . . 16 . 12 . . . . . . . Rewire . | . . . . . . . . . . . . . . . Trap . | . . . . . . . . . . . . . . . Miscellaneous . | . . . . . . . . . . . . . . . Route ------- -11/Scrapyard -10/Materials -9/Materials -8/Materials -7/Factory -7/Garrison (discovered 2 exits: *Sto x2) -7/Storage -6/Factory (discovered 2 exits: [*Fac] / *Low) -5/Factory -4/Factory -4/DSF -3/Research -2/Research -2/Testing -1/Access To Epsilon Eridani History --------- Turn | Location | Event 3 | -11/Scrapyard | Discovered new exit (range 15) 11 | -11/Scrapyard | Entered Materials 62 | -10/Materials | Discovered new exit (range 5) 64 | -10/Materials | Entered another Materials area 64 | -9/Materials | Evolved 2 slots: Propulsion x1, Utility x1 125 | -9/Materials | Discovered new exit (range 13) 137 | -9/Materials | Entered another Materials area 137 | -8/Materials | Evolved 2 slots: Propulsion x1, Utility x1 221 | -8/Materials | Met 7R-MNS 226 | -8/Materials | Discovered new exit (range 15) 240 | -8/Materials | Entered Factory 240 | -7/Factory | Evolved 2 slots: Power x1, Propulsion x1 329 | -7/Factory | Identified exit to Garrison 329 | -7/Factory | Entered Garrison 339 | -7/Garrison | Triggered checkpoint 342 | -7/Garrison | Garrison Relay disabled 353 | -7/Garrison | Triggered checkpoint 381 | -7/Garrison | Discovered new exit (range 8) 383 | -7/Garrison | Identified exit to Storage 383 | -7/Garrison | Attempted to access garrison exit controls, blocked by remote lockdown 385 | -7/Garrison | Lost 3 parts (1n1u1w) 393 | -7/Garrison | Triggered checkpoint 397 | -7/Garrison | Garrison Relay disabled 426 | -7/Garrison | Triggered checkpoint 426 | -7/Garrison | Triggered checkpoint 437 | -7/Garrison | Triggered checkpoint 437 | -7/Garrison | Discovered exit to Storage (range 15) 442 | -7/Garrison | Entered Storage 460 | -7/Storage | Lost 7 parts (2n4u1w) 475 | -7/Storage | Core integrity fell below 50% 560 | -7/Storage | Discovered new exit (range 4) 561 | -7/Storage | Identified exit to Factory 562 | -7/Storage | Entered Factory 562 | -6/Factory | Evolved 2 slots: Propulsion x1, Utility x1 639 | -6/Factory | Spotted B-75 Beast 727 | -6/Factory | Discovered new exit (range 16) 745 | -6/Factory | Identified exit to Lower Caves 882 | -6/Factory | Core integrity fell below 50% 887 | -6/Factory | Discovered new exit (range 8) 895 | -6/Factory | Entered another Factory area 895 | -5/Factory | Evolved 2 slots: Utility x2 902 | -5/Factory | Found Imp. Powered Armor 907 | -5/Factory | Discovered new exit (range 12) 915 | -5/Factory | Lost 3 parts (1p1n1u) 930 | -5/Factory | Entered another Factory area 930 | -4/Factory | Evolved 2 slots: Utility x2 961 | -4/Factory | Identified exit to DSF 961 | -4/Factory | Entered DSF 975 | -4/DSF | Additional patrols routed to DSF 977 | -4/DSF | Discovered new exit (range 14) 980 | -4/DSF | Entered Research 980 | -3/Research | Evolved 2 slots: Utility x2 1144 | -3/Research | Discovered new exit (range 9) 1161 | -3/Research | Entered another Research area 1161 | -2/Research | Evolved 2 slots: Propulsion x1, Utility x1 1182 | -2/Research | Build established: Sprinter 1194 | -2/Research | Spotted B-90 Cyclops 1269 | -2/Research | Discovered new exit (range 21) 1275 | -2/Research | Identified exit to Testing 1275 | -2/Research | Entered Testing 1405 | -2/Testing | Discovered new exit (range 23) 1414 | -2/Testing | Identified exit to Access 1414 | -2/Testing | Entered Access 1414 | -1/Access | Evolved 2 slots: Propulsion x1, Utility x1 1586 | -1/Access | Found Gamma Bomb Array 1644 | -1/Access | Lost 4 parts (1n2u1w) 1664 | -1/Access | Search patrols dispatched 1665 | -1/Access | Build established: Hacker-Sprinter 1768 | -1/Access | Spotted B-99 Colossus 1769 | -1/Access | Spotted B-99 Colossus 1823 | -1/Access | Discovered new exit (range 6) 1825 | -1/Access | Identified exit to Surface 1826 | *** | Escaped! Last Messages --------------- 01784_ Adv. Corruption Screen intercepted 1% system corruption. 01784_ ALERT: Suspicious activity at Terminal A001. Dispatching Investigation squad. 01785_ Dropped Quantum Reactor. 01786_ Dropped Lgt. Quantum Reactor. 01792_ Dropped Mic. Antimatter Reactor. 01800_ Acquired Mic. Antimatter Reactor. 01811_ Chain reaction triggered in Corrupted Quantum Reactor. 01811_ Terminal disabled. 01811_ Sealed Barrier breached. 01814_ ALERT: Rogue bot located, Programmers report to Access Zone 8U. 01817_ Acquired Corrupted Lgt. Quantum Reactor. 01820_ Dropped Corrupted Lgt. Quantum Reactor. 01822_ Slug penetrates Sealed Barrier. 01823_ Chain reaction triggered in Corrupted Lgt. Quantum Reactor. 01823_ Main Access Shell breached. 01823_ EXIT=FOUND 01825_ Slug penetrates Sealed Barrier. 01825_ EXIT=IDENTIFIED: SURFACE [Achievement: Speedrunner] Map ----- +----------------------------------------------------+ | ?????????????????????????????????????????????????? | | ?????????????????????????????????????????????????? | | ?????????????????????????????????????????????????? | | ?????????????????????????????????????????????????? | | ?????????????????????????????????????????????????? | | ?????????????????????????????????????????????????? | | ?????????????????????????????????????????????????? | | ?????????????????????????????????????????????????? | | ?????????????????????????????????????????????????? | | ####?????????????????????????????????????????????? | | # ###+############################### #????? | | # #????? | | # ??????? | | # ###+############ ""##????????????????? | | ##???# #??# ""#?????????????????? | | ?????# #??# ""#?????????????????? | | ?????# " #??# T#?????????????????? | | ?????# """ #??# "#?????????????????? | | ?????# """ #??# "#?????????????????? | | ?????# " ""#??# "#?????????????????? | | ?????# ""#??""""" """"?????????????????? | | ?????# ""#??# #?????????????????? | | ?????# ! T"#??# #?????????????????? | | ?????+ """#??# """"" #?????????????????? | | ?????# "" #??# " #?????????????????? | | ?????# #??# @" " #?????????????????? | | ?????# ! #??# "" "? #?????????????????? | | ?????#########"###??# "? #?????????????????? | | ?????????????# #????# """"""? #?????????????????? | | ?????????????# #????# ???????#?????????????????? | | ?????????????# #????#"""?????????????????????????? | | ?????????????# #?????????????????????????????????? | | ?????????????# #?????????????????????????????????? | | ?????????????# #????#""""""""""#?????????????????? | | ?????????????# #????# #?????????????????? | | ?????????????# #????# #?????????????????? | | ?????# ##### #????# #?????????????????? | | ?????# #????# #?????????????????? | | ?????######### #????# #?????????????????? | | ?????????????# #????# #?????????????????? | | ?????????????# #?????? ???????????????????? | | ?????????????# #???????# ###################### | | ?????????????# #???????# # + | | ??############ ######### # # | | + # | | % # ! + | | " ######## | | # #??????# | | ####################+######## "" ######## | | ???????????????????? ?????# "" # ! # | +----------------------------------------------------+ Best States ------------- Heat Dissipation 90 Energy Generation 45 Energy Capacity 840 Matter Stores 300 Matter Capacity 300 Sight Range 23 Terrain Scan Range 20 Terrain Scan Density 410 Power Amplification 20 Corruption Block 20 Armor Coverage 550 Resistance: KI 20 Resistance: TH 30 Power Shielding 66 Utility Shielding 66 Evasion (%) 77 Targeting Accuracy 14 Offensive Hacking 10 Defensive Hacking 30 Item Schematics ----------------- None Robot Schematics ------------------ None Fabricated ------------ Nothing Alien Tech Used ----------------- None Achievements -------------- Speedrunner Challenges ------------ None Game ------ Seed RemoteDamperDoublenader Manual? 0 Play Time 01:28:10 Cumulative 185.6 hours Start 2024.08.18 @ 17:08:34 End 2024.08.18 @ 19:10:22 Sessions 1 Manual Loads 0 Difficulty Rogue Special Mode None Game No. 61 Rogue 54 Adventurer 7 Explorer 0 Win Type 0 Total 5 Types 3/0/1/1/0/0/0/0/0 Lore% 57 Gallery% 68 Achievement% 57 Wizard Run 0 Options --------- Layout 0 ASCII 0 Keyboard 1 Movement Vi Keybinds 0 Fullscreen 2 Font 18/Smallcaps Map View 76x50 Zoom Use 0% Tactical HUD 1 Map Filters NONE Filters NONE Steam 1 RUN: fa9efc7d-a797-4e2b-b840-b7cfada96d1f